bitfinex/quotes_ETHUSD_20250703
["timestamp","ask_amount","ask_price","bid_price","bid_amount"]
[1751509869968,0.1944,2564.0,2563.6,0.4083719]
[1751509870267,0.8212,2563.9,2563.6,0.4083719]
[1751509870470,0.1944,2563.8,2563.6,0.2139719]
[1751509871238,1.29596,2563.8,2563.6,0.2139719]
[1751509871440,0.8013,2563.7,2563.6,0.2139719]
[1751509871677,2.8003,2563.7,2563.6,0.2139719]
[1751509871954,28.08494971,2563.7,2563.6,0.2139719]
[1751509872155,1.10156,2563.8,2563.2,1.54543119]
[1751509872156,0.7572,2563.6,2563.2,1.54543119]
[1751509872353,2.7562,2564.2,2563.2,2.33263119]
[1751509872553,0.7572,2564.7,2563.8,0.55]
[1751509872765,0.7572,2564.7,2564.0,3.9001325]
[1751509872984,1.999,2564.8,2564.0,0.55]
[1751509873154,0.8149,2564.9,2563.9,0.7872]
[1751509873359,1.999,2564.8,2564.1,3.89991629]
[1751509873565,1.999,2564.8,2564.0,3.90011629]
[1751509873790,0.8149,2564.9,2563.9,0.7872]
[1751509874084,0.7699,2564.6,2564.0,3.900156]
[1751509874294,1.999,2564.5,2564.1,3.89996121]
[1751509874601,1.999,2564.7,2564.4,3.89953731]
[1751509874900,1.999,2564.7,2564.5,3.89936974]
[1751509875302,0.7699,2565.0,2564.6,3.89914482]
[1751509875500,2.7689,2565.0,2564.5,3.89933904]
[1751509876275,2.7689,2565.0,2564.4,0.7797]
[1751509876276,2.7689,2565.0,2564.4,4.67917906]
[1751509876477,2.7689,2565.0,2564.4,0.7797]
[1751509876771,2.7689,2565.0,2564.5,3.89938778]
[1751509876970,2.7689,2565.0,2564.6,3.89918871]
[1751509878095,2.7689,2565.0,2564.7,3.89895295]
[1751509878668,1.999,2565.1,2564.7,0.77983115]
[1751509878878,1.999,2565.1,2564.9,3.89878697]
[1751509879367,1.999,2565.1,2564.8,3.89888225]
[1751509879568,0.02,2565.0,2564.7,3.89903511]
[1751509880091,0.02,2565.0,2564.1,0.7596]
[1751509880392,0.8001,2564.9,2564.4,3.89944928]
[1751509880589,2.7991,2564.9,2564.4,3.89954765]
[1751509880771,2.7991,2564.9,2564.1,0.7596]
[1751509880971,3.08101,2564.9,2564.3,3.89967546]
[1751509881377,2.7991,2564.9,2564.1,0.7596]
[1751509881566,2.7991,2564.9,2564.5,3.8993199]
[1751509881762,0.8001,2564.9,2564.5,3.8993199]
[1751509881969,2.019,2565.0,2564.7,4.88063262]
[1751509882301,2.019,2565.0,2564.8,3.89881828]
[1751509882767,0.02,2565.0,2564.9,3.89878747]
[1751509884599,0.02,2565.0,2564.8,3.89886874]
[1751509885093,0.02,2565.0,2564.9,3.89878747]
[1751509885281,0.02,2565.0,2564.9,4.09318747]
[1751509885798,0.02,2565.0,2564.9,4.97110562]
[1751509886505,0.02,2565.0,2564.9,6.30830562]
[1751509887098,0.02,2565.0,2564.9,5.75830562]
[1751509887300,0.02,2565.0,2564.9,4.09318747]
[1751509887797,0.02,2565.0,2564.9,4.88038747]
[1751509889192,0.02,2565.0,2564.9,0.1944]
[1751509889593,0.02,2565.0,2564.9,4.09318747]
[1751509889797,0.02,2565.0,2564.6,3.89922955]
[1751509889983,0.02,2565.0,2564.1,7.00685133]
[1751509889984,0.02,2565.0,2564.8,0.1944]
[1751509890201,0.7644,2564.7,2564.3,0.1944]
[1751509890410,2.7924,2564.7,2564.3,0.1944]
[1751509891589,2.7924,2564.7,2564.3,4.0940202]
[1751509891782,2.7924,2564.7,2564.3,4.09407259]
[1751509891988,2.028,2564.7,2564.5,3.89931368]
[1751509892204,2.028,2564.7,2564.5,0.1944]
[1751509892515,2.028,2564.7,2564.5,3.89939559]
[1751509893220,0.79,2565.0,2564.2,0.55]
[1751509893520,0.79,2565.0,2564.7,3.89894434]
[1751509894617,0.79,2565.0,2564.6,4.09358129]
[1751509895625,0.79,2565.0,2564.6,0.1944]
[1751509895821,0.79,2565.0,2564.6,4.09357285]
[1751509896025,0.79,2565.0,2564.7,3.89904373]
[1751509896227,0.79,2565.0,2564.7,3.89903566]
[1751509896408,0.79,2565.0,2564.6,4.09356458]
[1751509897107,0.79,2565.0,2564.7,3.89907341]
[1751509898022,0.79,2565.0,2564.6,4.09357473]
[1751509899504,0.79,2565.0,2564.6,0.1944]
[1751509900027,1.09844,2564.9,2564.6,0.1944]
[1751509900232,1.09844,2564.9,2564.2,3.8998518]
[1751509900401,0.1944,2564.7,2564.3,0.1944]
[1751509901113,0.1944,2564.7,2564.3,4.0940991]
[1751509901336,0.79,2565.0,2564.5,3.89931614]
[1751509901507,1.079,2564.9,2564.5,4.09371614]
[1751509902034,1.079,2564.9,2564.6,3.89922329]
[1751509902397,3.0134,2565.0,2564.6,3.89922329]
[1751509902601,3.0134,2565.0,2564.5,4.09372974]
[1751509902798,3.0134,2565.0,2564.5,0.1944]
[1751509903032,3.31474,2565.0,2564.5,0.1944]
[1751509903330,0.7547,2564.9,2564.5,0.1944]
[1751509903525,0.7547,2564.9,2564.1,8.118]
[1751509903832,0.7547,2564.6,2564.3,0.1944]
[1751509905939,0.7547,2564.6,2564.3,4.09408885]
[1751509906231,0.7547,2564.6,2564.3,4.09400122]
[1751509906416,0.1944,2564.7,2564.3,4.09400122]
[1751509906616,0.1944,2564.7,2564.4,3.89952539]
[1751509906817,0.1944,2564.7,2564.3,4.09402273]
[1751509907938,0.1944,2564.7,2564.3,0.1944]
[1751509908143,0.1944,2564.5,2564.0,4.09454935]
[1751509908648,0.1944,2564.5,2564.1,3.89998254]
[1751509908811,0.7829,2564.6,2564.3,3.89958614]
[1751509909141,0.1944,2564.7,2564.3,4.09398614]
[1751509909330,0.1944,2564.7,2564.3,0.1944]
[1751509909728,1.3197234,2564.7,2564.3,0.1944]
[1751509912448,1.3197234,2564.7,2564.4,3.89946747]
[1751509912649,0.1944,2564.7,2564.3,4.09402663]
[1751509913645,0.1944,2564.7,2564.4,3.89953335]
[1751509914218,0.1944,2564.7,2564.6,3.89924354]
[1751509914418,0.02,2565.0,2564.9,4.65188747]
[1751509914666,0.02,2565.0,2564.9,5.20188747]
[1751509914961,0.02,2565.0,2564.9,14.42036796]
[1751509920518,0.02,2565.0,2564.9,14.61876937]
[1751509921162,0.02,2565.0,2564.9,3.89878747]
[1751509921323,0.02,2565.0,2564.8,8.61886774]
[1751509921522,0.02,2565.0,2564.8,4.72]
[1751509921754,0.02,2565.0,2564.9,18.13]
[1751509922750,0.02,2565.0,2564.9,18.126]
[1751509922953,0.02,2565.0,2564.9,24.69927895]
[1751509923156,0.02,2565.0,2564.9,10.0]
[1751509923357,0.02,2565.0,2564.9,18.126]
[1751509923561,0.02,2565.0,2564.9,10.0]
[1751509923742,0.02,2565.0,2564.9,18.127]
[1751509924274,0.02,2565.0,2564.8,10.0]
[1751509924464,0.02,2565.0,2564.6,8.133]
[1751509924663,0.02,2565.0,2564.4,3.89945355]
[1751509924960,0.02,2565.0,2564.6,10.0]
[1751509925275,0.02,2565.0,2564.2,9.40697206]
[1751509925483,0.7968,2564.9,2564.3,8.132]
[1751509925697,0.7968,2564.9,2564.3,12.03169753]
[1751509925991,0.7968,2564.9,2564.4,8.133]
[1751509926658,0.7968,2564.9,2564.2,10.0]
[1751509926859,0.7968,2564.9,2564.3,8.131]
[1751509927190,0.7968,2564.9,2564.1,4.72]
[1751509927371,0.7968,2564.9,2564.3,8.131]
[1751509927883,1.10066,2564.9,2564.3,8.131]
[1751509928385,0.7968,2564.9,2564.3,12.03069724]
[1751509928555,0.7968,2564.9,2564.3,12.03065787]
[1751509928761,0.7968,2564.9,2564.4,3.89944911]
[1751509929973,0.7968,2564.9,2564.5,3.89937784]
[1751509930382,0.7968,2564.9,2564.6,3.89924341]
[1751509930558,0.7968,2564.9,2564.5,3.89936118]
[1751509930762,0.7968,2564.9,2564.6,8.13]
[1751509931258,0.02,2565.0,2564.7,3.89897853]
[1751509931459,0.02,2565.0,2564.8,3.89884892]
[1751509931655,0.02,2565.0,2564.9,23.54928747]
[1751509932695,0.02,2565.0,2564.9,14.64318747]
[1751509932856,0.02,2565.0,2564.9,25.09739111]
[1751509936491,0.02,2565.0,2564.9,25.87129111]
[1751509937870,0.02,2565.8,2565.7,3.89757181]
[1751509938077,0.02,2565.8,2565.7,22.75797181]
[1751509938875,0.02,2565.8,2565.7,18.8604]
[1751509939080,0.02,2565.8,2565.7,29.4359123]
[1751509939693,0.02,2565.8,2565.5,10.0]
[1751509939894,0.02,2565.8,2565.6,8.123]
[1751509940711,0.02,2565.8,2565.5,3.89777938]
[1751509940889,0.02,2565.8,2565.7,8.124]
[1751509941819,0.02,2565.8,2565.7,8.123]
[1751509947599,0.02,2565.8,2565.7,12.02057181]
[1751509948280,0.02,2565.8,2565.7,14.92079907]
[1751509948915,0.02,2565.8,2565.7,24.92079907]
[1751509949807,0.02,2565.8,2565.7,25.11519907]
[1751509951004,0.8428,2565.8,2565.3,3.10421137]
[1751509951217,0.8428,2565.8,2565.0,0.7872]
[1751509951505,1.10878,2565.7,2565.1,8.111]
[1751509951811,1.10878,2565.7,2565.1,12.00947094]
[1751509952018,1.10878,2565.7,2565.1,8.111]
[1751509952429,0.28598,2565.7,2564.9,0.01]
[1751509952589,0.8238,2565.6,2564.9,0.01]
[1751509952912,0.8238,2565.6,2565.0,8.11]
[1751509953121,0.8238,2565.6,2564.9,0.01]
[1751509953324,0.8238,2565.6,2565.1,8.109]
[1751509954823,0.8238,2565.6,2565.2,8.108]
[1751509955198,0.8238,2565.6,2565.2,8.104]
[1751509955403,0.8238,2565.6,2564.9,0.01]
[1751509957639,0.8238,2565.6,2564.9,8.112]
[1751509958139,0.50073563,2565.5,2564.9,8.112]
[1751509958324,0.7591,2565.6,2564.9,8.112]
[1751509959800,15.28198866,2565.5,2564.9,0.01]
[1751509959994,0.8003,2565.0,2564.9,0.01]
[1751509960198,4.03573373,2565.0,2564.9,0.01]
[1751509960627,0.8003,2564.7,2564.0,3.10421137]
[1751509960818,0.8003,2564.6,2563.8,0.01]
[1751509961017,0.1944,2564.3,2563.8,0.2044]
[1751509961244,2.2114,2564.3,2563.8,0.2044]
[1751509963140,2.2114,2564.3,2563.8,4.10474824]
[1751509963653,0.8003,2564.4,2563.9,3.90029675]
[1751509963848,0.8003,2564.4,2564.0,0.1944]
[1751509964045,0.8003,2564.4,2564.0,4.09447936]
[1751509964248,0.8003,2564.4,2564.3,0.1944]
[1751509965044,0.8003,2564.4,2563.8,0.01]
[1751509965252,1.08203,2564.4,2564.0,0.1944]
[1751509967188,2.8183,2564.4,2563.9,3.90029577]
[1751509967386,2.8183,2564.4,2564.2,0.1944]
[1751509967886,2.2124,2564.6,2564.2,0.1944]
[1751509968085,1.0,2564.3,2564.2,0.1944]
[1751509969393,0.999,2564.2,2563.8,0.01]
[1751509969542,0.1944,2564.0,2563.8,0.01]
[1751509969743,2.2124,2564.0,2563.8,0.01]
[1751509972489,2.018,2564.1,2563.8,0.2044]
[1751509972650,0.8176,2564.0,2563.8,0.2044]
[1751509972857,1.28356,2563.9,2563.8,0.01]
[1751509973075,0.8176,2564.0,2563.8,0.01]
[1751509977091,0.8176,2563.9,2563.8,0.01]
[1751509980175,34.9074,2563.8,2562.9,0.01]
[1751509980370,12.18443732,2563.0,2562.9,0.01]
[1751509980575,43.25852656,2563.0,2562.9,0.01]
[1751509980774,47.16020428,2563.0,2562.9,0.01]
[1751509980969,45.67711504,2563.0,2562.9,0.01]
[1751509981392,46.22711504,2563.0,2562.9,0.01]
[1751509981598,50.04755439,2563.0,2562.9,0.01]
[1751509982103,34.25483935,2563.0,2562.9,0.01]
[1751509982309,26.05483935,2563.0,2562.9,0.01]
[1751509982503,16.05483935,2563.0,2562.9,0.01]
[1751509982914,13.99283935,2563.0,2562.9,0.01]
[1751509983076,12.2344,2563.0,2562.9,0.01]
[1751509983284,12.4288,2563.0,2562.9,0.01]
[1751509984115,11.6284,2563.0,2562.9,0.01]
[1751509984319,9.372,2563.0,2562.9,0.01]
[1751509985296,10.5154,2563.0,2562.9,0.01]
[1751509987333,2.062,2563.6,2563.1,3.90147479]
[1751509987490,2.062,2563.6,2562.9,0.56]
[1751509987690,2.062,2563.6,2563.4,3.90094348]
[1751509987891,2.062,2563.6,2563.3,3.90117233]
[1751509988128,2.062,2563.6,2563.4,3.90103377]
[1751509988329,2.062,2563.6,2563.3,3.90116387]
[1751509988500,2.062,2563.6,2563.4,3.90102995]
[1751509988826,9.374,2563.9,2563.6,3.90075274]
[1751509989219,9.374,2563.9,2563.7,3.90051139]
[1751509989532,9.374,2563.9,2563.4,3.90106889]
[1751509989724,9.374,2563.9,2563.6,3.90076031]
[1751509990036,9.374,2563.9,2563.5,3.90090637]
[1751509990218,9.374,2563.9,2563.1,10.7969]
[1751509990429,9.374,2563.9,2563.4,3.90094337]
[1751509991005,10.5176,2563.9,2563.1,10.7969]
[1751509991407,10.5176,2563.9,2563.4,3.90098594]
[1751509991741,2.8449,2564.2,2563.2,0.55]
[1751509992036,11.0869,2564.2,2562.9,10.01]
[1751509992328,11.0869,2564.2,2563.2,3.90129686]
[1751509992729,11.38403732,2564.1,2562.9,18.255]
[1751509992909,0.7978,2564.0,2562.9,10.01]
[1751509993231,0.7978,2563.8,2562.9,0.01]
[1751509994200,2.062,2563.7,2563.4,0.01]
[1751509998147,0.1944,2563.6,2563.4,0.01]
[1751509998743,2.062,2563.7,2563.4,0.01]
[1751510000261,2.062,2563.6,2563.4,0.01]
[1751510000556,2.062,2563.6,2563.4,0.2044]
[1751510000927,2.062,2563.6,2563.4,4.10543739]
[1751510001129,2.062,2563.6,2563.4,0.2044]
[1751510001326,0.821,2563.5,2563.4,0.01]
[1751510001873,4.72191671,2563.5,2563.4,0.01]
[1751510003736,0.821,2563.5,2563.4,0.01]
[1751510004250,4.72191671,2563.5,2563.4,0.01]
[1751510005971,0.821,2563.5,2563.4,0.01]
[1751510006171,3.48330764,2563.5,2563.4,0.01]
[1751510007072,13.78130764,2563.5,2563.4,0.01]
[1751510008974,14.78130764,2563.5,2563.4,0.01]
[1751510010650,5.72430764,2563.5,2563.4,0.01]
[1751510010855,3.062,2563.5,2563.4,0.01]
[1751510011972,1.0,2563.5,2563.4,0.01]
[1751510012169,12.1004,2563.5,2563.4,0.01]
[1751510014013,1.7994,2563.5,2563.4,0.01]
[1751510014312,12.68641732,2563.5,2563.4,0.01]
[1751510015078,1.57201732,2563.5,2563.4,0.01]
[1751510015301,4.072,2563.5,2563.4,0.01]
[1751510015723,4.8557,2563.5,2563.4,0.01]
[1751510019518,2.0,2563.5,2563.4,0.01]
[1751510019881,2.7591,2563.5,2563.4,0.01]
[1751510020401,6.66001671,2563.5,2563.4,0.01]
[1751510020599,8.35821838,2563.5,2563.4,0.01]
[1751510020802,4.45730167,2563.5,2563.4,0.01]
[1751510021719,8.35821838,2563.5,2563.4,0.01]
[1751510022079,4.45730167,2563.5,2563.4,0.01]
[1751510022484,8.35821838,2563.5,2563.4,0.01]
[1751510022797,4.69663391,2563.1,2562.9,0.01]
[1751510022995,21.68103732,2563.0,2562.9,0.01]
[1751510023200,26.37411504,2563.0,2562.9,0.01]
[1751510023928,22.47243732,2563.0,2562.9,0.01]
[1751510025197,26.37411504,2563.0,2562.9,0.01]
[1751510025517,25.49998977,2563.0,2562.9,0.01]
[1751510026231,29.40166749,2563.0,2562.9,0.01]
[1751510026415,25.49998977,2563.0,2562.9,0.01]
[1751510027519,5.10055245,2563.0,2562.9,0.01]
[1751510027836,2.073,2563.0,2562.9,0.01]
[1751510028331,2.16340062,2563.4,2562.9,0.01]
[1751510028539,2.073,2563.0,2562.9,0.01]
[1751510030697,2.073,2563.2,2562.9,0.01]
[1751510032006,8.217,2563.1,2562.9,0.01]
[1751510032339,1.799,2563.0,2562.9,0.01]
[1751510034108,0.1944,2562.9,2562.8,0.25]
[1751510034306,10.1944,2562.9,2562.8,0.25]
[1751510035019,18.4144,2562.9,2562.8,0.25]
[1751510035418,23.68232995,2562.9,2562.8,0.25]
[1751510035641,27.29186668,2562.9,2562.8,0.25]
[1751510038868,30.55,2562.1,2561.0,0.2139719]
[1751510039069,3.8447,2562.0,2561.1,0.75]
[1751510039370,2.073,2562.4,2561.7,3.90353684]
[1751510039584,2.073,2562.4,2561.5,3.90385125]
[1751510039740,2.073,2562.4,2561.6,1.14038513]
[1751510040069,10.344,2562.6,2561.6,1.14038513]
[1751510040766,10.344,2562.6,2561.6,0.75]
[1751510040938,14.2463754,2562.6,2561.6,0.75]
[1751510041135,0.7805,2562.4,2561.6,0.75]
[1751510041340,8.268,2562.3,2561.6,0.75]
[1751510041540,10.0,2562.2,2561.6,0.75]
[1751510041757,0.7805,2562.4,2561.6,0.75]
[1751510041956,2.091,2562.3,2561.6,0.75]
[1751510042362,8.272,2562.4,2561.6,0.75]
[1751510042363,2.091,2562.2,2561.6,0.75]
[1751510042776,13.90219198,2562.7,2561.6,0.75]
[1751510042960,3.60759293,2562.6,2561.6,0.75]
[1751510043167,10.367,2562.5,2561.6,0.75]
[1751510043750,3.60759293,2562.6,2561.7,3.90363393]
[1751510043951,10.367,2562.4,2561.8,0.7953]
[1751510044352,3.60759293,2562.6,2561.8,0.7953]
[1751510044656,2.091,2562.3,2561.8,0.7953]
[1751510044850,2.091,2562.3,2561.9,3.90332759]
[1751510045149,2.091,2562.3,2561.8,4.69877604]
[1751510045779,12.17373732,2562.8,2561.9,3.90333421]
[1751510046078,2.091,2562.7,2562.1,0.7953]
[1751510046987,13.47503732,2562.7,2562.1,0.7953]
[1751510047352,18.267,2562.6,2561.9,0.8324]
[1751510047553,18.267,2562.6,2560.8,4.06492512]
[1751510047554,11.38403732,2562.3,2561.6,0.8324]
[1751510047872,19.65003732,2562.3,2561.6,0.8324]
[1751510048384,23.55283505,2562.3,2561.6,0.8324]
[1751510048573,3.90312242,2562.1,2561.4,0.8324]
[1751510048774,0.1952,2561.5,2561.1,0.8324]
[1751510049953,2.091,2561.4,2561.0,0.4091719]
[1751510050354,2.091,2561.4,2561.0,0.3591719]
[1751510051111,2.091,2561.4,2561.0,0.1639719]
[1751510051321,0.1952,2561.1,2561.0,0.1639719]
[1751510054217,2.092,2561.4,2561.0,0.1639719]
[1751510054508,2.2872,2561.4,2561.0,0.1639719]
[1751510055583,2.2872,2561.4,2561.0,4.06861008]
[1751510055895,2.2872,2561.4,2561.0,0.57359291]
[1751510056096,2.2872,2561.4,2561.0,0.0639719]
[1751510056291,0.1952,2561.4,2561.0,0.0639719]
[1751510056501,2.2872,2561.4,2561.0,0.0639719]
[1751510057627,0.1952,2561.1,2561.0,0.0639719]
[1751510058287,0.1952,2561.1,2560.6,0.1591719]
[1751510058486,0.1952,2561.1,2561.0,0.01]
[1751510059587,2.092,2561.2,2561.0,0.01]
[1751510059810,2.2872,2561.3,2561.0,3.91472291]
[1751510060022,2.2872,2561.3,2561.0,0.88775564]
[1751510060199,0.1952,2561.3,2561.0,0.88775564]
[1751510060394,0.1952,2561.3,2561.1,3.9044836]
[1751510060623,2.092,2561.4,2561.0,4.98761726]
[1751510060799,2.092,2561.4,2561.0,4.10986162]
[1751510061197,2.092,2561.4,2561.1,3.90455082]
[1751510061522,2.092,2561.4,2561.3,0.7686]
[1751510061689,0.1952,2561.5,2561.3,0.7686]
[1751510061690,2.092,2561.5,2561.3,0.7686]
[1751510062098,0.1944,2561.6,2561.3,0.7686]
[1751510062521,11.38403732,2561.4,2561.0,0.01]
[1751510064721,0.1952,2561.1,2561.0,0.01]
[1751510064923,11.471,2561.8,2561.0,0.7998]
[1751510065122,0.1944,2561.6,2561.2,0.7898]
[1751510067517,0.1944,2561.6,2561.2,4.69421353]
[1751510067926,8.259,2562.1,2561.3,0.8195]
[1751510067927,2.092,2562.1,2561.3,0.8195]
[1751510068092,0.1944,2561.9,2561.6,3.90378448]
[1751510068402,0.1944,2561.9,2561.6,3.90374689]
[1751510069014,0.1944,2561.9,2561.5,4.09828948]
[1751510069318,0.1944,2561.9,2561.5,4.98047931]
[1751510069645,0.1944,2561.9,2561.6,3.9037945]
[1751510070107,0.1944,2561.9,2561.5,4.09831959]
[1751510070325,12.17763732,2561.8,2560.8,3.87711137]
[1751510070501,1.23720373,2561.7,2561.0,0.01]
[1751510071237,0.7936,2562.1,2561.1,4.67741278]
[1751510071419,2.089,2562.0,2561.1,4.67741278]
[1751510072032,0.7936,2562.1,2561.1,4.67741278]
[1751510072233,2.089,2562.0,2561.1,4.67741278]
[1751510072727,0.7936,2562.1,2561.2,3.90441813]
[1751510072728,2.089,2561.9,2561.2,3.90441813]
[1751510072927,2.089,2561.9,2561.3,0.46773181]
[1751510073721,2.089,2561.9,2561.4,0.7509]
[1751510076120,2.089,2561.9,2561.4,4.6549339]
[1751510076851,2.089,2561.9,2561.4,0.7509]
[1751510077196,2.2979,2561.9,2561.4,0.7509]
[1751510078043,2.089,2561.9,2561.4,0.7509]
[1751510078247,2.089,2562.0,2561.4,4.45498534]
[1751510078536,2.089,2562.0,2561.4,4.45493715]
[1751510079438,11.38403732,2561.6,2561.0,0.01]
[1751510079603,1.95430373,2561.5,2561.0,0.01]
[1751510079808,2.089,2561.4,2561.0,0.01]
[1751510080543,3.90435478,2561.3,2561.0,0.01]
[1751510080742,5.99318219,2561.4,2561.0,0.01]
[1751510081044,1.81931195,2561.3,2561.0,0.01]
[1751510083127,0.1952,2561.2,2561.0,0.01]
[1751510083642,0.1952,2561.2,2561.1,0.7616]
[1751510083822,2.089,2561.4,2561.1,0.7616]
[1751510084022,0.1944,2561.6,2561.1,4.8612989]
[1751510084247,0.1944,2561.6,2561.3,3.90418455]
[1751510084546,2.2834,2561.8,2561.5,0.7762]
[1751510086616,2.2834,2561.8,2561.4,0.1952]
[1751510086821,2.9126,2561.8,2561.2,0.7502]
[1751510087128,0.1944,2561.6,2561.2,0.7502]
[1751510088632,0.1944,2561.6,2561.2,4.65461246]
[1751510088945,0.1944,2561.6,2561.2,0.7502]
[1751510089636,0.1944,2561.6,2561.2,4.65461003]
[1751510089840,0.1944,2561.6,2561.2,5.53105831]
[1751510090147,2.089,2561.8,2561.2,5.53105831]
[1751510090347,0.1944,2561.8,2561.3,0.1952]
[1751510090646,0.1944,2561.8,2561.3,4.09939712]
[1751510090838,0.1944,2561.8,2561.4,3.90409601]
[1751510091149,0.1944,2561.8,2561.3,4.09942502]
[1751510091453,0.1944,2561.8,2561.3,0.1952]
[1751510092237,0.50226,2561.8,2561.3,0.1952]
[1751510094336,0.1944,2561.6,2561.1,0.1952]
[1751510100573,0.8034,2561.5,2561.0,0.01]
[1751510100870,0.1952,2561.4,2561.0,0.01]
[1751510101507,0.8034,2561.5,2561.0,0.01]
[1751510101776,0.32786,2561.8,2561.2,0.1952]
[1751510101777,0.1944,2561.7,2561.2,0.1952]
[1751510101981,2.114,2561.8,2561.2,0.7622]
[1751510102193,0.02,2561.8,2561.4,0.1944]
[1751510102471,0.02,2561.8,2561.4,4.97502368]
[1751510102873,0.02,2561.8,2561.5,3.90393046]
[1751510103175,0.02,2561.8,2561.4,1.07091582]
[1751510103379,0.02,2561.8,2561.7,12.73391229]
[1751510103592,0.02,2561.8,2561.7,31.01691229]
[1751510103745,0.02,2561.8,2561.7,23.69385772]
[1751510104078,0.02,2561.8,2561.7,26.79806909]
[1751510104278,0.02,2561.8,2561.7,23.69385772]
[1751510104635,0.02,2561.8,2561.7,26.79265777]
[1751510104860,0.02,2561.8,2561.7,26.79365777]
[1751510105365,0.02,2561.8,2561.7,8.50965777]
[1751510105539,0.02,2561.8,2561.7,13.69385772]
[1751510105969,0.02,2561.8,2561.7,23.69385772]
[1751510106134,0.02,2561.9,2561.8,15.27250534]
[1751510106746,0.02,2561.9,2561.8,23.55250534]
[1751510107376,0.02,2561.9,2561.8,26.65671671]
[1751510107674,0.02,2561.9,2561.8,30.47715606]
[1751510107878,0.02,2562.4,2562.3,14.45274362]
[1751510108081,0.02,2562.4,2562.3,23.55354362]
[1751510110250,0.02,2562.4,2562.3,23.54854362]
[1751510112567,0.02,2562.4,2562.3,15.27354362]
[1751510112773,0.02,2562.4,2562.3,17.17344764]
[1751510112959,0.02,2562.4,2562.3,25.43944764]
[1751510115205,0.02,2562.4,2562.3,2.72070402]
[1751510115503,0.02,2562.4,2562.3,12.16074362]
[1751510117990,0.02,2562.4,2562.3,13.11184362]
[1751510118511,0.02,2562.4,2562.3,13.66184362]
[1751510119084,0.02,2562.4,2562.3,18.38184362]
[1751510119765,0.02,2562.4,2562.3,28.38184362]
[1751510119958,0.02,2562.4,2562.3,31.61031588]
[1751510121096,0.02,2562.4,2562.3,23.35231588]
[1751510121273,0.02,2562.4,2562.3,31.59231588]
[1751510125589,0.02,2562.4,2562.3,31.57831588]
[1751510134144,0.02,2562.4,2562.3,38.89449735]
[1751510134617,0.02,2563.0,2562.9,3.90182995]
[1751510134777,0.02,2563.0,2562.9,12.8812086]
[1751510134977,0.02,2563.0,2562.9,13.0756086]
[1751510138809,0.02,2563.0,2562.9,0.97477865]
[1751510139017,0.02,2563.0,2561.9,0.01]
[1751510139018,0.7523,2562.6,2561.9,0.01]
[1751510139198,0.7523,2562.1,2561.9,0.01]
[1751510144711,2.063,2562.0,2561.9,0.01]
[1751510145313,0.7523,2562.1,2561.9,0.01]
[1751510145526,2.063,2562.0,2561.9,0.01]
[1751510146810,0.8141,2562.7,2562.0,3.90307244]
[1751510147008,2.063,2562.6,2562.1,3.90300352]
[1751510147225,2.063,2562.6,2562.0,4.68476781]
[1751510147525,0.8141,2562.5,2561.9,0.01]
[1751510148947,0.1944,2562.3,2561.9,0.2044]
[1751510149602,0.1944,2562.3,2561.9,4.10771301]
[1751510150049,0.8141,2562.5,2562.0,3.9031097]
[1751510150230,2.063,2562.2,2562.1,4.87909055]
[1751510150552,2.063,2562.2,2562.1,0.1944]
[1751510154550,2.063,2562.2,2562.1,4.09744828]
[1751510155141,2.063,2562.3,2562.1,0.1944]
[1751510156072,2.063,2562.3,2561.9,0.01]
[1751510156240,2.2574,2562.3,2561.9,0.2044]
[1751510159565,2.56655,2562.3,2561.9,0.2044]
[1751510159941,2.2574,2562.3,2561.9,0.2044]
[1751510160339,2.2574,2562.3,2561.9,4.10773354]
[1751510160563,2.063,2562.2,2562.0,3.90313211]
[1751510160931,2.063,2562.2,2562.1,0.1944]
[1751510166238,2.063,2562.2,2561.9,0.01]
[1751510166439,2.063,2562.2,2561.9,0.2044]
[1751510167461,0.7772,2562.1,2561.9,0.2044]
[1751510168647,2.063,2562.2,2561.9,0.2044]
[1751510170075,0.7772,2562.3,2562.0,3.9031584]
[1751510170276,0.02,2562.4,2561.9,0.42078687]
[1751510170478,0.02,2562.4,2562.1,0.1944]
[1751510170479,2.045,2562.2,2562.1,0.1944]
[1751510170647,2.045,2562.2,2562.1,4.09744828]
[1751510171169,2.045,2562.2,2562.1,0.1944]
[1751510171582,2.045,2562.2,2562.1,4.09744828]
[1751510171758,2.045,2562.2,2562.1,4.58815311]
[1751510173387,0.02,2562.4,2562.1,0.68510483]
[1751510173703,2.045,2562.3,2562.1,4.09737612]
[1751510173845,2.065,2562.4,2562.3,3.90274362]
[1751510174045,2.065,2562.4,2562.3,4.09714362]
[1751510174249,0.02,2562.4,2562.3,4.09714362]
[1751510174455,0.02,2562.4,2562.3,4.89714522]
[1751510176580,0.02,2562.4,2562.3,5.66644522]
[1751510177246,0.02,2562.4,2562.3,6.21644522]
[1751510177953,0.02,2562.4,2562.3,14.35344522]
[1751510178550,0.02,2562.4,2562.3,29.07344522]
[1751510178751,2.315,2563.4,2562.9,3.90182995]
[1751510178950,2.315,2563.4,2562.9,28.46431295]
[1751510178951,0.27,2563.4,2562.9,28.46431295]